[Event "Titled Tuesday Blitz November 15 Early 2022"]
[White "Tan, Jun Ying"]
[Black "Rangel, Daniel"]
[WhiteFideId "5710413"]
[BlackFideId "2124475"]
[WhiteElo "2089"]
[BlackElo "2225"]
[Result "1-0"]
[Round "10"]
[TimeControl "180+1"]
[Date "2022.11.16"]
[WhiteClock "0:02:09"]
[BlackClock "0:01:47"]

1. e4 {[%clk 0:03:00]}  c5 {[%clk 0:02:59]} 2. Nc3 {[%clk 0:03:00]}  g6 {[%clk 0:02:59]} 3. f4 {[%clk 0:03:00]}  Bg7 {[%clk 0:03:00]} 4. Nf3 {[%clk 0:02:55]}  d6 {[%clk 0:02:59]} 5. Bb5+ {[%clk 0:02:54]}  Bd7 {[%clk 0:02:59]} 6. Bc4 {[%clk 0:02:54]}  e6 {[%clk 0:02:59]} 7. O-O {[%clk 0:02:54]}  Ne7 {[%clk 0:02:58]} 8. d3 {[%clk 0:02:47]}  Bc6 {[%clk 0:02:56]} 9. Qe1 {[%clk 0:02:40]}  d5 {[%clk 0:02:54]} 10. Bb3 {[%clk 0:02:40]}  O-O {[%clk 0:02:53]} 11. f5 {[%clk 0:02:37]}  exf5 {[%clk 0:02:52]} 12. Qh4 {[%clk 0:02:30]}  dxe4 {[%clk 0:02:45]} 13. dxe4 {[%clk 0:02:28]}  fxe4 {[%clk 0:02:40]} 14. Ng5 {[%clk 0:02:25]}  h6 {[%clk 0:02:17]} 15. Nxf7 {[%clk 0:02:19]}  Kh7 {[%clk 0:01:50]} 16. Nxd8 {[%clk 0:02:14]}  Bd4+ {[%clk 0:01:47]} 17. Be3 {[%clk 0:02:15]}  Bxe3+ {[%clk 0:01:47]} 18. Kh1 {[%clk 0:02:15]}  Nf5 {[%clk 0:01:47]} 19. Rxf5 {[%clk 0:02:12]}  Rxf5 {[%clk 0:01:48]} 20. Qe7+ {[%clk 0:02:12]}  Kh8 {[%clk 0:01:46]} 21. Nf7+ {[%clk 0:02:09]}  Kh7 {[%clk 0:01:47]} 22. Ng5+ {[%clk 0:02:09]}  Kh8 {[%clk 0:01:47]} 23. Qh7# {[%clk 0:02:09]} 1-0


[Site "https://www.chess.com"]

[Event "Titled Tuesday Blitz November 15 Early 2022"]
[White "Ter-Sahakyan, Samvel"]
[Black "Yu, Yangyi"]
[WhiteFideId "13302531"]
[BlackFideId "8603820"]
[WhiteElo "2584"]
[BlackElo "2808"]
[Result "1-0"]
[Round "10"]
[TimeControl "180+1"]
[Date "2022.11.15"]
[WhiteClock "0:00:10"]
[BlackClock "0:00:09"]

1. d4 {[%clk 0:02:59]}  Nf6 {[%clk 0:02:59]} 2. c4 {[%clk 0:03:00]}  e6 {[%clk 0:03:00]} 3. Nf3 {[%clk 0:02:59]}  d5 {[%clk 0:02:59]} 4. Nc3 {[%clk 0:03:00]}  Nbd7 {[%clk 0:02:59]} 5. cxd5 {[%clk 0:02:49]}  exd5 {[%clk 0:02:59]} 6. Bf4 {[%clk 0:02:49]}  Bb4 {[%clk 0:02:58]} 7. e3 {[%clk 0:02:49]}  O-O {[%clk 0:02:53]} 8. Bd3 {[%clk 0:02:47]}  c5 {[%clk 0:02:53]} 9. O-O {[%clk 0:02:41]}  c4 {[%clk 0:02:50]} 10. Bc2 {[%clk 0:02:42]}  Qa5 {[%clk 0:02:48]} 11. Rc1 {[%clk 0:02:37]}  Re8 {[%clk 0:02:47]} 12. Nd2 {[%clk 0:02:27]}  Nf8 {[%clk 0:02:41]} 13. Bg5 {[%clk 0:02:18]}  Bxc3 {[%clk 0:02:24]} 14. bxc3 {[%clk 0:02:18]}  Ne4 {[%clk 0:02:23]} 15. Bxe4 {[%clk 0:02:08]}  dxe4 {[%clk 0:02:24]} 16. Bf4 {[%clk 0:02:07]}  Qd5 {[%clk 0:02:18]} 17. a4 {[%clk 0:02:04]}  Ng6 {[%clk 0:02:15]} 18. Bg3 {[%clk 0:02:04]}  h5 {[%clk 0:02:15]} 19. h3 {[%clk 0:02:03]}  h4 {[%clk 0:02:15]} 20. Bh2 {[%clk 0:02:03]}  Be6 {[%clk 0:02:12]} 21. Rb1 {[%clk 0:02:02]}  Qc6 {[%clk 0:02:03]} 22. Qh5 {[%clk 0:01:49]}  Bd5 {[%clk 0:01:53]} 23. Rb5 {[%clk 0:01:30]}  Rad8 {[%clk 0:01:53]} 24. Rfb1 {[%clk 0:01:29]}  Rd7 {[%clk 0:01:50]} 25. a5 {[%clk 0:01:26]}  Qe6 {[%clk 0:01:46]} 26. Rc5 {[%clk 0:01:17]}  Red8 {[%clk 0:01:38]} 27. Qe2 {[%clk 0:01:17]}  b6 {[%clk 0:01:28]} 28. axb6 {[%clk 0:01:16]}  axb6 {[%clk 0:01:29]} 29. Rcb5 {[%clk 0:01:16]}  Rb7 {[%clk 0:01:29]} 30. R5b4 {[%clk 0:01:02]}  Rc8 {[%clk 0:01:25]} 31. Ra1 {[%clk 0:01:02]}  b5 {[%clk 0:01:23]} 32. Qd1 {[%clk 0:01:01]}  Ne7 {[%clk 0:01:21]} 33. Rab1 {[%clk 0:00:56]}  Bc6 {[%clk 0:01:21]} 34. Nxc4 {[%clk 0:00:37]}  bxc4 {[%clk 0:01:21]} 35. Rxb7 {[%clk 0:00:37]}  Bxb7 {[%clk 0:01:21]} 36. Rxb7 {[%clk 0:00:38]}  Nd5 {[%clk 0:01:22]} 37. Qc2 {[%clk 0:00:30]}  Ra8 {[%clk 0:01:19]} 38. Rb1 {[%clk 0:00:22]}  Qf5 {[%clk 0:01:10]} 39. Be5 {[%clk 0:00:20]}  f6 {[%clk 0:01:08]} 40. Bf4 {[%clk 0:00:18]}  Ra3 {[%clk 0:01:06]} 41. f3 {[%clk 0:00:15]}  Nxc3 {[%clk 0:00:45]} 42. Rb8+ {[%clk 0:00:14]}  Kh7 {[%clk 0:00:44]} 43. Qb2 {[%clk 0:00:15]}  Qa5 {[%clk 0:00:24]} 44. Qf2 {[%clk 0:00:13]}  Qh5 {[%clk 0:00:20]} 45. Qb2 {[%clk 0:00:12]}  Qa5 {[%clk 0:00:17]} 46. Qf2 {[%clk 0:00:12]}  g5 {[%clk 0:00:17]} 47. fxe4 {[%clk 0:00:12]}  Nxe4 {[%clk 0:00:17]} 48. Qf3 {[%clk 0:00:13]}  Qf5 {[%clk 0:00:14]} 49. Qh5+ {[%clk 0:00:10]}  Kg7 {[%clk 0:00:15]} 50. Rb7+ {[%clk 0:00:10]}  Kg8 {[%clk 0:00:09]} 51. Qf7+ {[%clk 0:00:10]} 1-0


[Site "https://www.chess.com"]

[Event "Titled Tuesday Blitz November 15 Early 2022"]
[White "Thiel, Thomas"]
[Black "Fabris, Alberto"]
[WhiteFideId "4615964"]
[BlackFideId "801348"]
[WhiteElo "2231"]
[BlackElo "2064"]
[Result "1-0"]
[Round "10"]
[TimeControl "180+1"]
[Date "2022.11.16"]
[WhiteClock "0:01:02"]
[BlackClock "0:00:46"]

1. e4 {[%clk 0:03:00]}  c6 {[%clk 0:02:59]} 2. d4 {[%clk 0:03:00]}  d5 {[%clk 0:03:00]} 3. exd5 {[%clk 0:03:00]}  cxd5 {[%clk 0:02:59]} 4. c4 {[%clk 0:03:00]}  Nf6 {[%clk 0:02:59]} 5. Nc3 {[%clk 0:03:00]}  Nc6 {[%clk 0:02:59]} 6. Bg5 {[%clk 0:02:58]}  e6 {[%clk 0:02:55]} 7. cxd5 {[%clk 0:02:54]}  exd5 {[%clk 0:02:54]} 8. Bd3 {[%clk 0:02:53]}  Be6 {[%clk 0:02:52]} 9. Nf3 {[%clk 0:02:51]}  Be7 {[%clk 0:02:50]} 10. O-O {[%clk 0:02:49]}  O-O {[%clk 0:02:50]} 11. h3 {[%clk 0:02:49]}  h6 {[%clk 0:02:49]} 12. Be3 {[%clk 0:02:47]}  Qd7 {[%clk 0:02:44]} 13. Ne5 {[%clk 0:02:44]}  Nxe5 {[%clk 0:02:42]} 14. dxe5 {[%clk 0:02:44]}  Ne8 {[%clk 0:02:34]} 15. Bd4 {[%clk 0:02:42]}  Nc7 {[%clk 0:02:31]} 16. Qh5 {[%clk 0:02:25]}  f5 {[%clk 0:02:07]} 17. exf6 {[%clk 0:02:13]}  Bxf6 {[%clk 0:02:06]} 18. Bxf6 {[%clk 0:02:12]}  Rxf6 {[%clk 0:02:06]} 19. Rad1 {[%clk 0:02:12]}  Raf8 {[%clk 0:02:00]} 20. Ne2 {[%clk 0:02:09]}  Bf7 {[%clk 0:01:54]} 21. Qh4 {[%clk 0:02:02]}  Bg6 {[%clk 0:01:51]} 22. Bxg6 {[%clk 0:01:59]}  Rxg6 {[%clk 0:01:51]} 23. Qd4 {[%clk 0:01:47]}  Kh8 {[%clk 0:01:41]} 24. Nf4 {[%clk 0:01:37]}  Rd6 {[%clk 0:01:40]} 25. Rfe1 {[%clk 0:01:33]}  Qf5 {[%clk 0:01:35]} 26. g3 {[%clk 0:01:32]}  Rfd8 {[%clk 0:01:29]} 27. Re5 {[%clk 0:01:31]}  Qf6 {[%clk 0:01:13]} 28. Nh5 {[%clk 0:01:29]}  Qg6 {[%clk 0:01:09]} 29. Re7 {[%clk 0:01:27]}  R6d7 {[%clk 0:01:00]} 30. Nf4 {[%clk 0:01:05]}  Qg5 {[%clk 0:00:50]} 31. Re5 {[%clk 0:01:03]}  Qf6 {[%clk 0:00:49]} 32. h4 {[%clk 0:01:02]}  Ne6 {[%clk 0:00:47]} 33. Rxe6 {[%clk 0:01:02]}  Qxd4 {[%clk 0:00:46]} 34. Rxd4 {[%clk 0:01:02]} 1-0


[Site "https://www.chess.com"]

[Event "Titled Tuesday Blitz November 15 Early 2022"]
[White "Valle Maytin, Luis Enrique"]
[Black "Ezat, Mohamed"]
[WhiteFideId "3503666"]
[BlackFideId "10600906"]
[WhiteElo "2225"]
[BlackElo "2386"]
[Result "0-1"]
[Round "10"]
[TimeControl "180+1"]
[Date "2022.11.16"]
[WhiteClock "0:00:02"]
[BlackClock "0:00:09"]

1. e4 {[%clk 0:03:00]}  e5 {[%clk 0:02:45]} 2. Nf3 {[%clk 0:02:59]}  Nc6 {[%clk 0:02:45]} 3. Bb5 {[%clk 0:03:00]}  Nge7 {[%clk 0:02:44]} 4. O-O {[%clk 0:02:59]}  a6 {[%clk 0:02:44]} 5. Ba4 {[%clk 0:02:59]}  g6 {[%clk 0:02:45]} 6. c3 {[%clk 0:02:59]}  Bg7 {[%clk 0:02:44]} 7. d4 {[%clk 0:02:58]}  b5 {[%clk 0:02:40]} 8. Bb3 {[%clk 0:02:55]}  O-O {[%clk 0:02:36]} 9. h3 {[%clk 0:02:55]}  d6 {[%clk 0:02:33]} 10. Bg5 {[%clk 0:02:45]}  h6 {[%clk 0:02:31]} 11. Bh4 {[%clk 0:02:43]}  g5 {[%clk 0:02:23]} 12. Bg3 {[%clk 0:02:42]}  Ng6 {[%clk 0:02:24]} 13. dxe5 {[%clk 0:02:35]}  Ncxe5 {[%clk 0:02:20]} 14. Nxe5 {[%clk 0:02:35]}  dxe5 {[%clk 0:02:19]} 15. Bd5 {[%clk 0:02:18]}  Rb8 {[%clk 0:02:16]} 16. Qh5 {[%clk 0:02:09]}  Qf6 {[%clk 0:02:13]} 17. Nd2 {[%clk 0:02:01]}  c6 {[%clk 0:02:11]} 18. Bb3 {[%clk 0:02:01]}  c5 {[%clk 0:01:53]} 19. Bd5 {[%clk 0:01:56]}  Bb7 {[%clk 0:01:52]} 20. c4 {[%clk 0:01:43]}  Nf4 {[%clk 0:01:43]} 21. Bxf4 {[%clk 0:01:43]}  Qxf4 {[%clk 0:01:37]} 22. Qe2 {[%clk 0:01:39]}  Kh8 {[%clk 0:01:23]} 23. g3 {[%clk 0:01:08]}  Qf6 {[%clk 0:01:23]} 24. b3 {[%clk 0:01:07]}  Qg6 {[%clk 0:01:19]} 25. g4 {[%clk 0:01:00]}  bxc4 {[%clk 0:01:14]} 26. Bxc4 {[%clk 0:00:50]}  Rfd8 {[%clk 0:01:07]} 27. f3 {[%clk 0:00:38]}  Rd4 {[%clk 0:01:06]} 28. Rfd1 {[%clk 0:00:36]}  Rbd8 {[%clk 0:00:59]} 29. Nf1 {[%clk 0:00:33]}  Qf6 {[%clk 0:00:55]} 30. Ne3 {[%clk 0:00:30]}  Qf4 {[%clk 0:00:55]} 31. Kg2 {[%clk 0:00:21]}  h5 {[%clk 0:00:49]} 32. Rxd4 {[%clk 0:00:15]}  Rxd4 {[%clk 0:00:45]} 33. Rd1 {[%clk 0:00:11]}  h4 {[%clk 0:00:43]} 34. Nf1 {[%clk 0:00:09]}  Kh7 {[%clk 0:00:19]} 35. Rd3 {[%clk 0:00:07]}  Kh6 {[%clk 0:00:16]} 36. Rd1 {[%clk 0:00:05]}  Bf6 {[%clk 0:00:14]} 37. Rd3 {[%clk 0:00:05]}  Bd8 {[%clk 0:00:14]} 38. Qd1 {[%clk 0:00:05]}  Ba5 {[%clk 0:00:13]} 39. Qe2 {[%clk 0:00:05]}  f6 {[%clk 0:00:13]} 40. Qf2 {[%clk 0:00:02]}  Bb4 {[%clk 0:00:09]} 0-1


[Site "https://www.chess.com"]

[Event "Titled Tuesday Blitz November 15 Early 2022"]
[White "Zaichenko, Daria"]
[Black "Seifert, Henryk"]
[WhiteFideId "4197453"]
[BlackFideId "1100963"]
[WhiteElo "2039"]
[BlackElo "2120"]
[Result "1-0"]
[Round "10"]
[TimeControl "180+1"]
[Date "2022.11.16"]
[WhiteClock "0:01:06"]
[BlackClock "0:00:02"]

1. e4 {[%clk 0:03:00]}  e6 {[%clk 0:02:56]} 2. d4 {[%clk 0:02:59]}  d5 {[%clk 0:02:55]} 3. Bd3 {[%clk 0:02:59]}  Nc6 {[%clk 0:02:52]} 4. c3 {[%clk 0:02:50]}  e5 {[%clk 0:02:38]} 5. Ne2 {[%clk 0:02:41]}  exd4 {[%clk 0:02:32]} 6. cxd4 {[%clk 0:02:39]}  dxe4 {[%clk 0:02:25]} 7. Bxe4 {[%clk 0:02:38]}  Bb4+ {[%clk 0:02:24]} 8. Nbc3 {[%clk 0:02:37]}  Nf6 {[%clk 0:02:20]} 9. Bg5 {[%clk 0:02:30]}  O-O {[%clk 0:02:13]} 10. O-O {[%clk 0:02:26]}  h6 {[%clk 0:02:07]} 11. Bh4 {[%clk 0:02:23]}  Bxc3 {[%clk 0:01:34]} 12. Bxc6 {[%clk 0:02:08]}  Bxb2 {[%clk 0:01:20]} 13. Rb1 {[%clk 0:02:03]}  bxc6 {[%clk 0:01:10]} 14. Rxb2 {[%clk 0:02:03]}  g5 {[%clk 0:01:04]} 15. Bg3 {[%clk 0:02:01]}  Be6 {[%clk 0:00:52]} 16. Nc3 {[%clk 0:01:55]}  Nd5 {[%clk 0:00:50]} 17. Ne4 {[%clk 0:01:47]}  Nf6 {[%clk 0:00:28]} 18. Nc5 {[%clk 0:01:45]}  Bd5 {[%clk 0:00:28]} 19. Rb7 {[%clk 0:01:30]}  Ne8 {[%clk 0:00:16]} 20. Qh5 {[%clk 0:01:27]}  Kg7 {[%clk 0:00:10]} 21. f4 {[%clk 0:01:19]}  Nf6 {[%clk 0:00:05]} 22. Qe2 {[%clk 0:01:13]}  Re8 {[%clk 0:00:04]} 23. Qc2 {[%clk 0:01:12]}  Be4 {[%clk 0:00:02]} 24. Qb2 {[%clk 0:01:06]} 1-0


[Site "https://www.chess.com"]

[Event "Titled Tuesday Blitz November 15 Early 2022"]
[White "Zemlyanskii, Ivan"]
[Black "Terry, Renato"]
[WhiteFideId "24249971"]
[BlackFideId "3803457"]
[WhiteElo "2107"]
[BlackElo "2577"]
[Result "0-1"]
[Round "10"]
[TimeControl "180+1"]
[Date "2022.11.15"]
[WhiteClock "0:00:01"]
[BlackClock "0:01:02"]

1. d4 {[%clk 0:03:00]}  e6 {[%clk 0:02:59]} 2. c4 {[%clk 0:02:53]}  Bb4+ {[%clk 0:02:59]} 3. Bd2 {[%clk 0:02:49]}  c5 {[%clk 0:02:58]} 4. Nf3 {[%clk 0:02:44]}  Qb6 {[%clk 0:02:54]} 5. Bxb4 {[%clk 0:02:30]}  Qxb4+ {[%clk 0:02:54]} 6. Qd2 {[%clk 0:02:20]}  Qxc4 {[%clk 0:02:44]} 7. Na3 {[%clk 0:02:05]}  Qb4 {[%clk 0:02:41]} 8. Rc1 {[%clk 0:01:51]}  Qxd2+ {[%clk 0:02:38]} 9. Nxd2 {[%clk 0:01:47]}  d5 {[%clk 0:02:24]} 10. Nb5 {[%clk 0:01:41]}  Kd7 {[%clk 0:02:20]} 11. Rxc5 {[%clk 0:01:34]}  Nc6 {[%clk 0:02:20]} 12. e3 {[%clk 0:01:30]}  b6 {[%clk 0:02:19]} 13. Rc1 {[%clk 0:01:27]}  Bb7 {[%clk 0:02:19]} 14. Bd3 {[%clk 0:01:18]}  Nge7 {[%clk 0:02:18]} 15. Nf3 {[%clk 0:01:15]}  f6 {[%clk 0:02:15]} 16. Kd2 {[%clk 0:01:11]}  Rac8 {[%clk 0:02:14]} 17. Rhe1 {[%clk 0:01:04]}  a6 {[%clk 0:02:10]} 18. Nc3 {[%clk 0:01:01]}  b5 {[%clk 0:02:11]} 19. a4 {[%clk 0:00:57]}  Na5 {[%clk 0:02:08]} 20. Rc2 {[%clk 0:00:47]}  b4 {[%clk 0:02:06]} 21. Ne2 {[%clk 0:00:31]}  Nb3+ {[%clk 0:01:47]} 22. Kd1 {[%clk 0:00:31]}  Bc6 {[%clk 0:01:47]} 23. Bxa6 {[%clk 0:00:24]}  Ra8 {[%clk 0:01:47]} 24. Bb5 {[%clk 0:00:21]}  Bxb5 {[%clk 0:01:47]} 25. axb5 {[%clk 0:00:20]}  Rhc8 {[%clk 0:01:36]} 26. Nc1 {[%clk 0:00:17]}  Na5 {[%clk 0:01:28]} 27. Nd3 {[%clk 0:00:16]}  Kd6 {[%clk 0:01:28]} 28. Nxb4 {[%clk 0:00:16]}  Rcb8 {[%clk 0:01:28]} 29. Nd3 {[%clk 0:00:06]}  Rxb5 {[%clk 0:01:28]} 30. Nc5 {[%clk 0:00:07]}  Nc4 {[%clk 0:01:29]} 31. b3 {[%clk 0:00:07]}  Na5 {[%clk 0:01:27]} 32. Ra2 {[%clk 0:00:07]}  Rab8 {[%clk 0:01:28]} 33. Kc2 {[%clk 0:00:06]}  Nec6 {[%clk 0:01:28]} 34. Kd2 {[%clk 0:00:03]}  Nxb3+ {[%clk 0:01:27]} 35. Nxb3 {[%clk 0:00:04]}  Rxb3 {[%clk 0:01:28]} 36. Rc1 {[%clk 0:00:05]}  Nb4 {[%clk 0:01:25]} 37. Ra7 {[%clk 0:00:01]}  Rb2+ {[%clk 0:01:25]} 38. Kd1 {[%clk 0:00:02]}  Rxf2 {[%clk 0:01:24]} 39. Rcc7 {[%clk 0:00:02]}  Rd8 {[%clk 0:01:22]} 40. Rxg7 {[%clk 0:00:02]}  h5 {[%clk 0:01:21]} 41. Nh4 {[%clk 0:00:02]}  Nc6 {[%clk 0:01:16]} 42. Rab7 {[%clk 0:00:01]}  Na5 {[%clk 0:01:10]} 43. Ke1 {[%clk 0:00:02]}  Rc2 {[%clk 0:01:08]} 44. Ra7 {[%clk 0:00:01]}  Nc6 {[%clk 0:01:07]} 45. Raf7 {[%clk 0:00:02]}  Nb4 {[%clk 0:01:04]} 46. Kd1 {[%clk 0:00:02]}  Rf2 {[%clk 0:01:03]} 47. Ng6 {[%clk 0:00:02]}  Ra8 {[%clk 0:01:02]} 48. Rd7+ {[%clk 0:00:02]}  Kc6 {[%clk 0:01:02]} 49. Rc7+ {[%clk 0:00:03]}  Kb5 {[%clk 0:01:03]} 50. Rb7+ {[%clk 0:00:03]}  Kc4 {[%clk 0:01:03]} 51. Rgc7+ {[%clk 0:00:02]}  Kd3 {[%clk 0:01:02]} 52. Nf4+ {[%clk 0:00:01]}  Rxf4 {[%clk 0:01:03]} 53. Rxb4 {[%clk 0:00:01]}  Rf1# {[%clk 0:01:02]} 0-1


[Site "https://www.chess.com"]

[Event "Titled Tuesday Blitz November 15 Early 2022"]
[White "Abrahamyan, Tatev"]
[Black "Adithya A Chullikkad"]
[WhiteFideId "13301918"]
[BlackFideId "45078734"]
[WhiteElo "2347"]
[BlackElo "2106"]
[Result "1-0"]
[Round "11"]
[TimeControl "180+1"]
[Date "2022.11.16"]
[WhiteClock "0:01:43"]
[BlackClock "0:01:09"]

1. e4 {[%clk 0:02:51]}  c6 {[%clk 0:02:59]} 2. d4 {[%clk 0:02:50]}  d5 {[%clk 0:02:59]} 3. Nc3 {[%clk 0:02:51]}  g6 {[%clk 0:02:58]} 4. e5 {[%clk 0:02:50]}  Bg7 {[%clk 0:02:58]} 5. Nf3 {[%clk 0:02:50]}  Bf5 {[%clk 0:02:58]} 6. h3 {[%clk 0:02:46]}  h5 {[%clk 0:02:56]} 7. Be2 {[%clk 0:02:45]}  Nd7 {[%clk 0:02:56]} 8. Bf4 {[%clk 0:02:43]}  Nh6 {[%clk 0:02:55]} 9. Qd2 {[%clk 0:02:42]}  Qb6 {[%clk 0:02:54]} 10. O-O-O {[%clk 0:02:40]}  O-O-O {[%clk 0:02:50]} 11. Nh4 {[%clk 0:02:31]}  Be6 {[%clk 0:02:42]} 12. f3 {[%clk 0:02:25]}  Nb8 {[%clk 0:02:35]} 13. g4 {[%clk 0:02:23]}  Na6 {[%clk 0:02:34]} 14. Ng2 {[%clk 0:02:14]}  Ng8 {[%clk 0:02:20]} 15. Be3 {[%clk 0:02:11]}  Bd7 {[%clk 0:02:15]} 16. f4 {[%clk 0:02:10]}  hxg4 {[%clk 0:02:05]} 17. hxg4 {[%clk 0:02:04]}  Nh6 {[%clk 0:02:05]} 18. Rh4 {[%clk 0:01:55]}  Nc7 {[%clk 0:01:35]} 19. Rdh1 {[%clk 0:01:51]}  f6 {[%clk 0:01:31]} 20. Na4 {[%clk 0:01:44]}  Qa6 {[%clk 0:01:09]} 21. Bxa6 {[%clk 0:01:43]} 1-0


[Site "https://www.chess.com"]

[Event "Titled Tuesday Blitz November 15 Early 2022"]
[White "Ambartsumova, Karina"]
[Black "Acor, Corey"]
[WhiteFideId "4166299"]
[BlackFideId "2024861"]
[WhiteElo "2584"]
[BlackElo "2725"]
[Result "1-0"]
[Round "11"]
[TimeControl "180+1"]
[Date "2022.11.16"]
[WhiteClock "0:00:05"]
[BlackClock "0:00:05"]

1. Nf3 {[%clk 0:03:00]}  d6 {[%clk 0:02:55]} 2. d4 {[%clk 0:03:00]}  g6 {[%clk 0:02:54]} 3. g3 {[%clk 0:03:00]}  Bg7 {[%clk 0:02:55]} 4. Bg2 {[%clk 0:03:01]}  Nd7 {[%clk 0:02:53]} 5. O-O {[%clk 0:03:01]}  e5 {[%clk 0:02:53]} 6. c4 {[%clk 0:02:50]}  Ne7 {[%clk 0:02:45]} 7. Nc3 {[%clk 0:02:48]}  O-O {[%clk 0:02:44]} 8. e4 {[%clk 0:02:43]}  f5 {[%clk 0:02:36]} 9. exf5 {[%clk 0:02:29]}  Nxf5 {[%clk 0:02:00]} 10. Bg5 {[%clk 0:02:19]}  Bf6 {[%clk 0:01:46]} 11. Bxf6 {[%clk 0:02:12]}  Qxf6 {[%clk 0:01:47]} 12. Nd5 {[%clk 0:02:08]}  Qd8 {[%clk 0:01:46]} 13. dxe5 {[%clk 0:01:53]}  Nxe5 {[%clk 0:01:47]} 14. Nxe5 {[%clk 0:01:51]}  dxe5 {[%clk 0:01:47]} 15. Re1 {[%clk 0:01:32]}  Qd6 {[%clk 0:01:43]} 16. Rc1 {[%clk 0:01:06]}  c6 {[%clk 0:01:22]} 17. c5 {[%clk 0:00:59]}  Qd8 {[%clk 0:01:15]} 18. Nc3 {[%clk 0:00:58]}  Nd4 {[%clk 0:01:13]} 19. Rxe5 {[%clk 0:00:56]}  Bf5 {[%clk 0:00:41]} 20. Bd5+ {[%clk 0:00:55]}  cxd5 {[%clk 0:00:39]} 21. Qxd4 {[%clk 0:00:55]}  Rf7 {[%clk 0:00:26]} 22. Rxd5 {[%clk 0:00:51]}  Qg5 {[%clk 0:00:25]} 23. Rd1 {[%clk 0:00:43]}  Raf8 {[%clk 0:00:24]} 24. Rd8 {[%clk 0:00:42]}  Bg4 {[%clk 0:00:20]} 25. Rxf8+ {[%clk 0:00:42]}  Rxf8 {[%clk 0:00:18]} 26. Qd5+ {[%clk 0:00:41]}  Qxd5 {[%clk 0:00:18]} 27. Rxd5 {[%clk 0:00:42]}  Bf3 {[%clk 0:00:17]} 28. Re5 {[%clk 0:00:32]}  Rd8 {[%clk 0:00:13]} 29. Re3 {[%clk 0:00:32]}  Bc6 {[%clk 0:00:12]} 30. f4 {[%clk 0:00:31]}  Rd4 {[%clk 0:00:09]} 31. Kf2 {[%clk 0:00:29]}  Kf7 {[%clk 0:00:08]} 32. a3 {[%clk 0:00:24]}  h5 {[%clk 0:00:07]} 33. Re5 {[%clk 0:00:21]}  Rd2+ {[%clk 0:00:06]} 34. Re2 {[%clk 0:00:21]}  Rd4 {[%clk 0:00:07]} 35. Ke3 {[%clk 0:00:18]}  Rc4 {[%clk 0:00:06]} 36. Kd3 {[%clk 0:00:14]}  Rxc5 {[%clk 0:00:06]} 37. Re3 {[%clk 0:00:12]}  Rf5 {[%clk 0:00:07]} 38. h4 {[%clk 0:00:12]}  b6 {[%clk 0:00:05]} 39. Kd4 {[%clk 0:00:12]}  Rf6 {[%clk 0:00:05]} 40. b4 {[%clk 0:00:07]}  Rd6+ {[%clk 0:00:05]} 41. Kc4 {[%clk 0:00:08]}  Rd2 {[%clk 0:00:06]} 42. b5 {[%clk 0:00:08]}  Bd7 {[%clk 0:00:06]} 43. Ne4 {[%clk 0:00:06]}  Rc2+ {[%clk 0:00:05]} 44. Kb3 {[%clk 0:00:06]}  Rg2 {[%clk 0:00:04]} 45. a4 {[%clk 0:00:05]}  Be6+ {[%clk 0:00:03]} 46. Kb4 {[%clk 0:00:06]}  Bd5 {[%clk 0:00:03]} 47. Nd6+ {[%clk 0:00:04]}  Kf6 {[%clk 0:00:03]} 48. Nc8 {[%clk 0:00:04]}  Rb2+ {[%clk 0:00:02]} 49. Ka3 {[%clk 0:00:04]}  Ra2+ {[%clk 0:00:03]} 50. Kb4 {[%clk 0:00:05]}  Rb2+ {[%clk 0:00:04]} 51. Kc3 {[%clk 0:00:04]}  Ra2 {[%clk 0:00:05]} 52. Kd4 {[%clk 0:00:02]}  Be6 {[%clk 0:00:04]} 53. Nd6 {[%clk 0:00:01]}  Rxa4+ {[%clk 0:00:04]} 54. Kc3 {[%clk 0:00:01]}  Ra3+ {[%clk 0:00:03]} 55. Kd4 {[%clk 0:00:02]}  Ra4+ {[%clk 0:00:03]} 56. Kc3 {[%clk 0:00:02]}  Ra1 {[%clk 0:00:04]} 57. Kd4 {[%clk 0:00:02]}  Bg4 {[%clk 0:00:04]} 58. Ne4+ {[%clk 0:00:02]}  Kg7 {[%clk 0:00:03]} 59. Nc3 {[%clk 0:00:02]}  Rc1 {[%clk 0:00:02]} 60. Ke5 {[%clk 0:00:03]}  Kf7 {[%clk 0:00:02]} 61. Kd6 {[%clk 0:00:03]}  Rc2 {[%clk 0:00:02]} 62. Kc7 {[%clk 0:00:03]}  Rc1 {[%clk 0:00:02]} 63. Kb7 {[%clk 0:00:04]}  Ra1 {[%clk 0:00:03]} 64. Nd5 {[%clk 0:00:03]}  Be6 {[%clk 0:00:03]} 65. Nc3 {[%clk 0:00:02]}  Bc4 {[%clk 0:00:03]} 66. Re4 {[%clk 0:00:02]}  Bd3 {[%clk 0:00:02]} 67. Rd4 {[%clk 0:00:02]}  Bf5 {[%clk 0:00:01]} 68. Kb8 {[%clk 0:00:02]}  Rc1 {[%clk 0:00:01]} 69. Rc4 {[%clk 0:00:03]}  Rg1 {[%clk 0:00:01]} 70. Rc7+ {[%clk 0:00:03]}  Ke6 {[%clk 0:00:01]} 71. Kxa7 {[%clk 0:00:04]}  Rxg3 {[%clk 0:00:01]} 72. Kxb6 {[%clk 0:00:05]}  Kd6 {[%clk 0:00:01]} 73. Rc6+ {[%clk 0:00:05]}  Kd7 {[%clk 0:00:01]} 74. Rc7+ {[%clk 0:00:05]}  Kd8 {[%clk 0:00:02]} 75. Rc5 {[%clk 0:00:06]}  Bd7 {[%clk 0:00:03]} 76. Nd5 {[%clk 0:00:05]}  Rg4 {[%clk 0:00:04]} 77. Nf6 {[%clk 0:00:05]}  Rxf4 {[%clk 0:00:04]} 78. Nxd7 {[%clk 0:00:05]}  Kxd7 {[%clk 0:00:05]} 79. Rd5+ {[%clk 0:00:05]}  Ke6 {[%clk 0:00:05]} 80. Kc6 {[%clk 0:00:05]}  Rxh4 {[%clk 0:00:05]} 81. b6 {[%clk 0:00:05]}  Rb4 {[%clk 0:00:05]} 82. Rb5 {[%clk 0:00:04]}  Rf4 {[%clk 0:00:05]} 83. b7 {[%clk 0:00:04]}  Rf8 {[%clk 0:00:06]} 84. b8=Q {[%clk 0:00:05]}  Rxb8 {[%clk 0:00:06]} 85. Rxb8 {[%clk 0:00:06]}  Kf5 {[%clk 0:00:06]} 86. Kd5 {[%clk 0:00:05]}  h4 {[%clk 0:00:06]} 87. Rf8+ {[%clk 0:00:06]}  Kg4 {[%clk 0:00:06]} 88. Ke4 {[%clk 0:00:06]}  g5 {[%clk 0:00:06]} 89. Ke3 {[%clk 0:00:07]}  Kg3 {[%clk 0:00:07]} 90. Ke2 {[%clk 0:00:07]}  h3 {[%clk 0:00:06]} 91. Kf1 {[%clk 0:00:07]}  g4 {[%clk 0:00:05]} 92. Kg1 {[%clk 0:00:05]}  Kh4 {[%clk 0:00:04]} 93. Rh8+ {[%clk 0:00:05]}  Kg3 {[%clk 0:00:05]} 94. Rh7 {[%clk 0:00:04]}  Kf3 {[%clk 0:00:05]} 95. Kh2 {[%clk 0:00:05]}  Kf2 {[%clk 0:00:04]} 96. Rf7+ {[%clk 0:00:05]}  Ke3 {[%clk 0:00:05]} 97. Kg3 {[%clk 0:00:05]}  Ke4 {[%clk 0:00:05]} 98. Rg7 {[%clk 0:00:05]} 1-0


[Site "https://www.chess.com"]